{"text_format":"3","workbook":"xlsx","n_sheets":2,"sheets":["Λίστα δασκάλου"," Δεδομένα λίστας"],"not_rendered":{"defined_names":6},"read":"whole","date_system":"1900"}

{"sheet":"Λίστα δασκάλου","index":0,"n_rows":10,"n_cols":10,"rows_kept":10,"merged":[[0,1,0,2],[0,4,0,8],[2,9,6,9]]}
[null,"Λίστα δασκάλου",null,"Δεδομένα λίστας","Το υπόμνημα χρωμάτων για την κατάσταση βρίσκεται σε αυτό το κελί: Η ένδειξη \"Δεν έχει αρχίσει\" είναι σε κανονικό στυλ, η ένδειξη \"Σε εξέλιξη\" είναι R=91 G=133 B=49, η ένδειξη \"Προθεσμία σήμερα\" είναι R=118 G=88 B=0, η ένδειξη \"Σε αναμονή\" είναι R=109 G=66 B=111, η ένδειξη \"Ολοκληρώθηκε\" είναι με διακριτή διαγραφή, η ένδειξη \"Ακυρώθηκε\" είναι R=191 G=191 B=191 και η ένδειξη \"Εκπρόθεσμη\" είναι R=191 G=33 B=28."]
[null,"ΣΤΟΙΧΕΙΟ","ΚΑΤΗΓΟΡΙΑ","ΗΜΕΡΟΜΗΝΙΑ ΕΝΑΡΞΗΣ","ΠΡΟΘΕΣΜΙΑ","ΗΜΕΡΕΣ ΠΟΥ ΑΠΟΜΕΝΟΥΝ","ΚΑΤΑΣΤΑΣΗ","ΣΗΜΕΙΩΣΕΙΣ"]
[null,"Καθάρισμα συρταριών","Γραφείο",{"$f":"DATE(YEAR(TODAY()),MONTH(TODAY())-1,6)","v":"2018-04-06"},{"$f":"DATE(YEAR(TODAY()),MONTH(TODAY())-1,16)","v":"2018-04-16"},{"$f":"IFERROR(IF(COUNT(Λίστα[[#This Row],[ΗΜΕΡΟΜΗΝΙΑ ΕΝΑΡΞΗΣ]]:Λίστα[[#This Row],[ΠΡΟΘΕΣΜΙΑ]])<>2,\"\",IF(OR(Λίστα[[#This Row],[ΚΑΤΑΣΤΑΣΗ]]=\"Ολοκληρώθηκε\",Λίστα[[#This Row],[ΚΑΤΑΣΤΑΣΗ]]=\"Ακυρώθηκε\",Λίστα[[#This Row],[ΚΑΤΑΣΤΑΣΗ]]=\"Σε αναμονή\"),\"\",Λίστα[[#This Row],[ΠΡΟΘΕΣΜΙΑ]]-TODAY())),\"\")","v":""},"Ολοκληρώθηκε",null,null,"Ο αναλυτής κατάστασης βρίσκεται σε αυτό το κελί. Για να φιλτράρετε τη λίστα με βάση την κατάσταση, επιλέξτε μια κατάσταση από τον αναλυτή. Πατήστε και κρατήστε πατημένο το πλήκτρο CTRL για να ενεργοποιήσετε πολλές επιλογές."]
[null,"Παραγγελία αυτοκόλλητων","Προμήθειες",{"$f":"DATE(YEAR(TODAY()),MONTH(TODAY())-1,11)","v":"2018-04-11"},{"$f":"DATE(YEAR(TODAY()),MONTH(TODAY())-1,21)","v":"2018-04-21"},{"$f":"IFERROR(IF(COUNT(Λίστα[[#This Row],[ΗΜΕΡΟΜΗΝΙΑ ΕΝΑΡΞΗΣ]]:Λίστα[[#This Row],[ΠΡΟΘΕΣΜΙΑ]])<>2,\"\",IF(OR(Λίστα[[#This Row],[ΚΑΤΑΣΤΑΣΗ]]=\"Ολοκληρώθηκε\",Λίστα[[#This Row],[ΚΑΤΑΣΤΑΣΗ]]=\"Ακυρώθηκε\",Λίστα[[#This Row],[ΚΑΤΑΣΤΑΣΗ]]=\"Σε αναμονή\"),\"\",Λίστα[[#This Row],[ΠΡΟΘΕΣΜΙΑ]]-TODAY())),\"\")","v":""},"Ολοκληρώθηκε"]
[null,"Σφουγγάρισμα και γυάλισμα πατωμάτων","Άλλο",{"$f":"DATE(YEAR(TODAY()),MONTH(TODAY()-1),DAY(TODAY())-25)","v":"2018-04-15"},{"$f":"DATE(YEAR(TODAY()),MONTH(TODAY())-1,26)","v":"2018-04-26"},{"$f":"IFERROR(IF(COUNT(Λίστα[[#This Row],[ΗΜΕΡΟΜΗΝΙΑ ΕΝΑΡΞΗΣ]]:Λίστα[[#This Row],[ΠΡΟΘΕΣΜΙΑ]])<>2,\"\",IF(OR(Λίστα[[#This Row],[ΚΑΤΑΣΤΑΣΗ]]=\"Ολοκληρώθηκε\",Λίστα[[#This Row],[ΚΑΤΑΣΤΑΣΗ]]=\"Ακυρώθηκε\",Λίστα[[#This Row],[ΚΑΤΑΣΤΑΣΗ]]=\"Σε αναμονή\"),\"\",Λίστα[[#This Row],[ΠΡΟΘΕΣΜΙΑ]]-TODAY())),\"\")","v":""},"Ολοκληρώθηκε"]
[null,"Ονομασία ετικετών που δημιούργησα","Προμήθειες",{"$f":"DATE(YEAR(TODAY()),MONTH(TODAY())-1,21)","v":"2018-04-21"},{"$f":"DATE(YEAR(TODAY()),MONTH(TODAY())-1,1)","v":"2018-04-01"},{"$f":"IFERROR(IF(COUNT(Λίστα[[#This Row],[ΗΜΕΡΟΜΗΝΙΑ ΕΝΑΡΞΗΣ]]:Λίστα[[#This Row],[ΠΡΟΘΕΣΜΙΑ]])<>2,\"\",IF(OR(Λίστα[[#This Row],[ΚΑΤΑΣΤΑΣΗ]]=\"Ολοκληρώθηκε\",Λίστα[[#This Row],[ΚΑΤΑΣΤΑΣΗ]]=\"Ακυρώθηκε\",Λίστα[[#This Row],[ΚΑΤΑΣΤΑΣΗ]]=\"Σε αναμονή\"),\"\",Λίστα[[#This Row],[ΠΡΟΘΕΣΜΙΑ]]-TODAY())),\"\")","v":""},"Σε αναμονή"]
[null,"Βαθμολογία γραπτών εκθέσεων τριμήνου","Αξιολογήσεις",{"$f":"DATE(YEAR(TODAY()),MONTH(TODAY())-1,26)","v":"2018-04-26"},{"$f":"TODAY()-5","v":"2018-05-05"},{"$f":"IFERROR(IF(COUNT(Λίστα[[#This Row],[ΗΜΕΡΟΜΗΝΙΑ ΕΝΑΡΞΗΣ]]:Λίστα[[#This Row],[ΠΡΟΘΕΣΜΙΑ]])<>2,\"\",IF(OR(Λίστα[[#This Row],[ΚΑΤΑΣΤΑΣΗ]]=\"Ολοκληρώθηκε\",Λίστα[[#This Row],[ΚΑΤΑΣΤΑΣΗ]]=\"Ακυρώθηκε\",Λίστα[[#This Row],[ΚΑΤΑΣΤΑΣΗ]]=\"Σε αναμονή\"),\"\",Λίστα[[#This Row],[ΠΡΟΘΕΣΜΙΑ]]-TODAY())),\"\")","v":-5},"Εκπρόθεσμη"]
[null,"Υπενθύμιση ηλεκτρονικού ταχυδρομείου για τις υπεύθυνες δηλώσεις","Τηλεφωνήματα",{"$f":"DATE(YEAR(TODAY()),MONTH(TODAY()),1)","v":"2018-05-01"},{"$f":"TODAY()","v":"2018-05-10"},{"$f":"IFERROR(IF(COUNT(Λίστα[[#This Row],[ΗΜΕΡΟΜΗΝΙΑ ΕΝΑΡΞΗΣ]]:Λίστα[[#This Row],[ΠΡΟΘΕΣΜΙΑ]])<>2,\"\",IF(OR(Λίστα[[#This Row],[ΚΑΤΑΣΤΑΣΗ]]=\"Ολοκληρώθηκε\",Λίστα[[#This Row],[ΚΑΤΑΣΤΑΣΗ]]=\"Ακυρώθηκε\",Λίστα[[#This Row],[ΚΑΤΑΣΤΑΣΗ]]=\"Σε αναμονή\"),\"\",Λίστα[[#This Row],[ΠΡΟΘΕΣΜΙΑ]]-TODAY())),\"\")","v":""},"Ακυρώθηκε"]
[null,"Βαθμολογία προφορικών εκθέσεων","Γραφείο",{"$f":"DATE(YEAR(TODAY()),MONTH(TODAY()),7)","v":"2018-05-07"},{"$f":"DATE(YEAR(TODAY()),MONTH(TODAY()),17)","v":"2018-05-17"},{"$f":"IFERROR(IF(COUNT(Λίστα[[#This Row],[ΗΜΕΡΟΜΗΝΙΑ ΕΝΑΡΞΗΣ]]:Λίστα[[#This Row],[ΠΡΟΘΕΣΜΙΑ]])<>2,\"\",IF(OR(Λίστα[[#This Row],[ΚΑΤΑΣΤΑΣΗ]]=\"Ολοκληρώθηκε\",Λίστα[[#This Row],[ΚΑΤΑΣΤΑΣΗ]]=\"Ακυρώθηκε\",Λίστα[[#This Row],[ΚΑΤΑΣΤΑΣΗ]]=\"Σε αναμονή\"),\"\",Λίστα[[#This Row],[ΠΡΟΘΕΣΜΙΑ]]-TODAY())),\"\")","v":7},"Σε εξέλιξη"]
[null,"Ξύσιμο μολυβιών","Προμήθειες",{"$f":"DATE(YEAR(TODAY()),MONTH(TODAY()),11)","v":"2018-05-11"},{"$f":"DATE(YEAR(TODAY()),MONTH(TODAY()),10)","v":"2018-05-10"},{"$f":"IFERROR(IF(COUNT(Λίστα[[#This Row],[ΗΜΕΡΟΜΗΝΙΑ ΕΝΑΡΞΗΣ]]:Λίστα[[#This Row],[ΠΡΟΘΕΣΜΙΑ]])<>2,\"\",IF(OR(Λίστα[[#This Row],[ΚΑΤΑΣΤΑΣΗ]]=\"Ολοκληρώθηκε\",Λίστα[[#This Row],[ΚΑΤΑΣΤΑΣΗ]]=\"Ακυρώθηκε\",Λίστα[[#This Row],[ΚΑΤΑΣΤΑΣΗ]]=\"Σε αναμονή\"),\"\",Λίστα[[#This Row],[ΠΡΟΘΕΣΜΙΑ]]-TODAY())),\"\")","v":0},"Σε εξέλιξη"]

{"sheet":" Δεδομένα λίστας","index":1,"n_rows":13,"n_cols":3,"rows_kept":13}
[null,"Δεδομένα λίστας","Λίστα δασκάλου"]
[null,"Κατηγορία"]
[null,"Γραφείο"]
[null,"Προμήθειες"]
[null,"Πράγματα που πρέπει να αγοράσω"]
[null,"Τηλεφωνήματα"]
[null,"Νέες ιδέες"]
[null,"Αξιολογήσεις"]
[null,"Ομάδα"]
[null,"Επεμβάσεις"]
[null,"Υπολογιστής"]
[null,"Προσωπικό"]
[null,"Άλλο"]